bitfinex/quotes_BTCUSD_20250623
["timestamp","ask_amount","ask_price","bid_price","bid_amount"]
[1750698764901,0.34,101580.0,101570.0,0.25713824]
[1750698765106,0.45484024,101580.0,101570.0,0.22501824]
[1750698765332,5.10850524,101580.0,101570.0,0.22501824]
[1750698765555,5.10850524,101580.0,101570.0,0.00013824]
[1750698766808,5.20980463,101580.0,101570.0,0.01213824]
[1750698767039,5.10850524,101580.0,101570.0,0.00013824]
[1750698767271,5.10950524,101580.0,101570.0,0.00713824]
[1750698773622,5.15950524,101580.0,101570.0,0.00713824]
[1750698773828,5.10950524,101580.0,101570.0,0.00713824]
[1750698774687,0.01454085,101560.0,101530.0,4.99506698]
[1750698774906,0.35454085,101540.0,101530.0,4.7604157]
[1750698775123,5.10850524,101540.0,101530.0,4.65556533]
[1750698776222,5.13812724,101540.0,101530.0,4.65556533]
[1750698777315,5.14012724,101540.0,101530.0,4.65556533]
[1750698777519,5.24042663,101540.0,101530.0,4.65556533]
[1750698778163,5.14012724,101540.0,101530.0,4.65556533]
[1750698779634,5.19012724,101540.0,101530.0,4.65556533]
[1750698780486,5.14012724,101540.0,101530.0,4.65556533]
[1750698782038,5.14012724,101540.0,101530.0,1.61992986]
[1750698783136,5.86571714,101540.0,101530.0,0.88690509]
[1750698783349,5.89500359,101540.0,101530.0,0.80230196]
[1750698783563,5.4572607,101540.0,101530.0,0.74777694]
[1750698783792,5.94811695,101540.0,101530.0,0.73477319]
[1750698784000,5.94611695,101540.0,101530.0,0.68024817]
[1750698784211,5.7493021,101540.0,101530.0,0.68024817]
[1750698784447,0.06454085,101510.0,101500.0,0.19244724]
[1750698784663,5.1683558,101510.0,101500.0,0.0737508]
[1750698784874,5.1683558,101510.0,101490.0,0.00013841]
[1750698784875,4.993665,101500.0,101490.0,0.00013841]
[1750698785131,5.09396439,101500.0,101490.0,0.00027692]
[1750698785775,5.15172,101500.0,101490.0,0.00027692]
[1750698785985,5.181356,101500.0,101490.0,0.00027692]
[1750698786426,5.19689685,101500.0,101490.0,0.00027692]
[1750698786872,5.22365093,101500.0,101480.0,3.0042]
[1750698787087,4.80456279,101490.0,101480.0,2.93718367]
[1750698787304,4.77721031,101490.0,101480.0,2.93718367]
[1750698787485,4.77721031,101490.0,101480.0,2.87874367]
[1750698788397,4.80728683,101490.0,101480.0,2.87295367]
[1750698788821,4.80928683,101490.0,101480.0,2.87295367]
[1750698789719,5.14928683,101490.0,101480.0,2.87295367]
[1750698789937,5.16914264,101490.0,101480.0,2.87295367]
[1750698790163,5.23918016,101490.0,101480.0,2.70275217]
[1750698790401,5.47215266,101490.0,101480.0,2.66375067]
[1750698790623,5.5955218,101490.0,101480.0,2.17891068]
[1750698790850,5.8166018,101490.0,101480.0,2.06599482]
[1750698791070,5.9203018,101490.0,101480.0,0.66041208]
[1750698791282,5.9203018,101490.0,101480.0,0.58879572]
[1750698791498,5.9203018,101490.0,101480.0,0.39627784]
[1750698791726,5.9495825,101490.0,101480.0,0.39627784]
[1750698791947,5.9495825,101490.0,101440.0,0.004]
[1750698791948,4.70095725,101450.0,101440.0,0.004]
[1750698792165,4.70095725,101450.0,101430.0,6e-05]
[1750698792166,4.30695725,101440.0,101430.0,6e-05]
[1750698792381,4.40725664,101440.0,101430.0,0.06276]
[1750698792586,4.43229422,101440.0,101430.0,0.06276]
[1750698792818,4.45886349,101440.0,101430.0,0.06276]
[1750698793053,4.45886349,101440.0,101430.0,6e-05]
[1750698793270,4.45886349,101440.0,101410.0,2.563]
[1750698793271,4.57675,101420.0,101410.0,2.5307]
[1750698793483,4.71489664,101420.0,101410.0,2.5307]
[1750698793705,4.77181845,101420.0,101410.0,2.5307]
[1750698793921,4.73993422,101420.0,101410.0,2.5307]
[1750698794383,4.76662782,101420.0,101410.0,2.4766936]
[1750698795054,4.98770782,101420.0,101410.0,2.12943672]
[1750698795273,5.00742633,101420.0,101410.0,2.12943672]
[1750698795521,5.05371479,101420.0,101410.0,2.12943672]
[1750698795743,5.36239525,101420.0,101410.0,2.12412176]
[1750698795965,5.66850452,101420.0,101410.0,2.12412176]
[1750698796184,2.47318109,101380.0,101370.0,0.03]
[1750698796403,2.57348048,101380.0,101370.0,0.03]
[1750698796612,2.56746924,101380.0,101370.0,0.02398876]
[1750698797333,2.55292839,101380.0,101370.0,0.05398876]
[1750698797549,2.56760804,101380.0,101360.0,0.004]
[1750698797769,2.22746924,101370.0,101360.0,0.004]
[1750698798235,2.56746924,101370.0,101360.0,0.004]
[1750698799767,2.56746924,101370.0,101360.0,3.004]
[1750698799977,2.56946924,101370.0,101360.0,3.004]
[1750698800429,2.56746924,101370.0,101360.0,3.004]
[1750698800671,2.56846924,101370.0,101360.0,3.0349]
[1750698800895,2.55392839,101370.0,101360.0,3.068]
[1750698801102,2.58360039,101370.0,101360.0,3.068]
[1750698801986,2.143301,101370.0,101360.0,3.068]
[1750698802207,2.483301,101370.0,101360.0,3.068]
[1750698802430,2.143301,101370.0,101360.0,3.16829939]
[1750698802652,0.030672,101370.0,101360.0,3.16829939]
[1750698802882,0.029672,101370.0,101360.0,3.16829939]
[1750698803378,0.07937689,101430.0,101390.0,0.0623]
[1750698803594,2.21306658,101420.0,101410.0,0.0319]
[1750698803806,2.21306658,101420.0,101410.0,0.0299]
[1750698804021,2.58272558,101420.0,101410.0,0.0299]
[1750698805318,2.24272558,101420.0,101410.0,0.0616]
[1750698805538,2.14242619,101420.0,101410.0,0.0616]
[1750698805981,2.14242619,101420.0,101410.0,0.0596]
[1750698806219,2.48242619,101420.0,101410.0,0.0596]
[1750698806648,2.58372558,101420.0,101410.0,0.0626]
[1750698807136,2.58372558,101420.0,101410.0,0.0309]
[1750698807591,2.59826643,101420.0,101410.0,0.003]
[1750698807827,2.58372558,101420.0,101410.0,0.003]
[1750698809101,2.58372558,101420.0,101410.0,0.0347]
[1750698810767,2.48342619,101420.0,101410.0,0.0347]
[1750698811410,2.58372558,101420.0,101410.0,0.0347]
[1750698812755,2.59826643,101420.0,101410.0,0.003]
[1750698812979,2.60812573,101420.0,101410.0,0.003]
[1750698813205,2.59826643,101420.0,101410.0,0.003]
[1750698813647,2.81934643,101420.0,101410.0,0.003]
[1750698814283,2.84276528,101420.0,101410.0,0.003]
[1750698815534,2.85262449,101420.0,101410.0,0.003]
[1750698815738,2.85262458,101420.0,101410.0,0.003]
[1750698815945,2.86248399,101420.0,101410.0,0.003]
[1750698816170,2.84276528,101420.0,101410.0,0.003]
[1750698816384,2.85265927,101420.0,101410.0,0.003]
[1750698816598,2.90265927,101420.0,101410.0,0.003]
[1750698816814,2.92237798,101420.0,101410.0,0.003]
[1750698817023,2.91251848,101420.0,101410.0,0.003]
[1750698817247,2.93197644,101420.0,101410.0,0.003]
[1750698817446,3.01277644,101420.0,101410.0,0.003]
[1750698817665,3.00291733,101420.0,101410.0,0.003]
[1750698817874,2.82817931,101420.0,101410.0,0.034]
[1750698818287,2.82817931,101420.0,101410.0,0.003]
[1750698818288,2.85749648,101420.0,101410.0,0.003]
[1750698818542,2.94175584,101420.0,101410.0,0.003]
[1750698818751,3.20867576,101420.0,101410.0,0.003]
[1750698818953,3.22886398,101420.0,101410.0,0.003]
[1750698819159,3.24842613,101420.0,101410.0,0.003]
[1750698819583,3.23856634,101420.0,101410.0,0.003]
[1750698820456,3.1798799,101420.0,101410.0,0.003]
[1750698820877,3.04327945,101420.0,101410.0,0.003]
[1750698821091,3.12185892,101420.0,101410.0,0.003]
[1750698821304,3.13689419,101420.0,101410.0,0.003]
[1750698821521,2.67696999,101420.0,101410.0,0.003]
[1750698821735,3.09755719,101420.0,101410.0,0.003]
[1750698821949,3.03769808,101420.0,101410.0,0.003]
[1750698822155,3.02315723,101420.0,101410.0,0.003]
[1750698822409,2.68585808,101420.0,101410.0,0.003]
[1750698822614,3.02692864,101420.0,101410.0,0.003]
[1750698822836,3.01804055,101420.0,101410.0,0.003]
[1750698823050,2.71624055,101420.0,101410.0,0.003]
[1750698823267,2.99604864,101420.0,101410.0,0.003]
[1750698823773,2.94604864,101420.0,101410.0,0.003]
[1750698824232,2.94600864,101420.0,101410.0,0.003]
[1750698824712,2.99600864,101420.0,101410.0,0.003]
[1750698825158,2.94600864,101420.0,101410.0,0.003]
[1750698825587,2.99600864,101420.0,101410.0,0.003]
[1750698826249,2.95673808,101420.0,101410.0,0.003]
[1750698826445,2.94602718,101420.0,101410.0,0.003]
[1750698826877,2.31171824,101420.0,101410.0,0.0351]
[1750698827109,2.29674656,101420.0,101410.0,0.0667]
[1750698827330,2.65128741,101420.0,101410.0,0.0667]
[1750698827592,2.65128741,101420.0,101410.0,0.0351]
[1750698828023,2.112629,101400.0,101390.0,0.0316]
[1750698828245,2.23648356,101400.0,101390.0,0.0316]
[1750698829146,2.26614356,101400.0,101390.0,0.0316]
[1750698829580,2.26814356,101400.0,101390.0,0.0346]
[1750698830217,2.16784417,101400.0,101390.0,0.0346]
[1750698831047,2.16784417,101400.0,101390.0,0.0659]
[1750698834704,2.18631493,101400.0,101390.0,0.0659]
[1750698835369,2.18631493,101400.0,101390.0,0.39077281]
[1750698835370,0.04402593,101400.0,101390.0,0.39077281]
[1750698835560,0.00013819,101420.0,101410.0,0.0638]
[1750698835764,0.00013819,101420.0,101410.0,0.16409939]
[1750698835967,0.029649,101430.0,101420.0,0.062]
[1750698836169,0.029649,101430.0,101420.0,0.07869284]
[1750698836370,0.369649,101430.0,101420.0,0.07869284]
[1750698836640,0.369649,101430.0,101420.0,0.07669284]
[1750698836836,0.029649,101430.0,101420.0,0.17699223]
[1750698837046,2.112629,101460.0,101420.0,0.11699223]
[1750698837258,0.34,101450.0,101440.0,0.0308]
[1750698837473,2.112629,101460.0,101450.0,0.0308]
[1750698837673,2.452629,101460.0,101450.0,0.0308]
[1750698838092,2.48227,101460.0,101450.0,0.0308]
[1750698838697,2.48227,101460.0,101450.0,0.0298]
[1750698839316,0.370641,101460.0,101450.0,0.0338]
[1750698839545,0.370641,101460.0,101450.0,0.0663]
[1750698839749,0.030641,101460.0,101450.0,0.07424099]
[1750698840396,0.030641,101460.0,101450.0,0.17454038]
[1750698840607,0.001,101460.0,101450.0,0.17454038]
[1750698840808,0.029632,101460.0,101450.0,0.57081889]
[1750698841126,0.0041,101470.0,101460.0,0.0313]
[1750698841341,0.0041,101470.0,101460.0,0.23189878]
[1750698841342,0.033732,101470.0,101460.0,0.23189878]
[1750698841556,2.112629,101500.0,101470.0,0.0313]
[1750698841767,0.029628,101500.0,101490.0,0.0626]
[1750698841969,0.029628,101500.0,101490.0,0.0606]
[1750698842176,0.004,101510.0,101490.0,0.0606]
[1750698842384,0.00413829,101510.0,101500.0,0.0313]
[1750698842593,0.00413829,101510.0,101500.0,0.24946]
[1750698843233,0.00413829,101510.0,101500.0,0.24746]
[1750698843801,0.00413829,101510.0,101500.0,0.0273]
[1750698843960,0.00413829,101510.0,101500.0,0.34775939]
[1750698844169,0.00413829,101510.0,101500.0,0.41286203]
[1750698844597,0.00513829,101510.0,101500.0,0.42386203]
[1750698845033,0.00513829,101510.0,101500.0,0.45446203]
[1750698845504,0.00513829,101510.0,101500.0,0.68106182]
[1750698845714,0.029618,101530.0,101500.0,0.61331029]
[1750698845911,0.029618,101530.0,101520.0,0.0306]
[1750698846122,0.029618,101530.0,101520.0,0.07418994]
[1750698846322,0.529618,101530.0,101510.0,0.21996]
[1750698846540,2.452629,101520.0,101510.0,0.28106]
[1750698846745,2.452629,101520.0,101500.0,0.23096]
[1750698846746,2.452629,101510.0,101500.0,0.23096]
[1750698846976,0.34,101510.0,101500.0,0.0412]
[1750698847180,2.55292839,101510.0,101500.0,0.011]
[1750698847591,2.55292839,101510.0,101490.0,0.21988]
[1750698847788,0.34,101500.0,101490.0,0.02514629]
[1750698847992,0.34,101500.0,101490.0,0.21997829]
[1750698848260,0.34,101500.0,101490.0,0.25017829]
[1750698849082,0.34,101500.0,101490.0,0.06273829]
[1750698849265,0.34,101500.0,101490.0,0.38283768]
[1750698849677,0.10899489,101530.0,101490.0,0.35863768]
[1750698849878,0.34,101510.0,101500.0,0.25066]
[1750698850023,0.34,101510.0,101500.0,0.0309]
[1750698850221,0.34,101510.0,101500.0,0.25062]
[1750698850564,0.34,101510.0,101500.0,0.28132]
[1750698851513,0.34,101510.0,101500.0,0.22172]
[1750698851650,0.34,101510.0,101500.0,0.002]
[1750698852030,2.452629,101510.0,101500.0,0.002]
[1750698852240,2.55292839,101510.0,101500.0,0.002]
[1750698852647,2.57110716,101510.0,101500.0,0.002]
[1750698853264,2.58564801,101510.0,101500.0,0.002]
[1750698853478,2.61614801,101510.0,101500.0,0.002]
[1750698853689,2.71984801,101510.0,101500.0,0.002]
[1750698853891,2.58564801,101510.0,101500.0,0.002]
[1750698854105,2.452629,101500.0,101490.0,0.00013829]
[1750698854343,2.57110716,101500.0,101490.0,0.00013829]
[1750698854757,0.35817877,101500.0,101490.0,0.06193829]
[1750698854962,0.35817877,101500.0,101490.0,0.00633212]
[1750698855163,0.35817877,101500.0,101490.0,0.06193829]
[1750698855164,2.47080777,101500.0,101490.0,0.06193829]
[1750698855376,0.34,101500.0,101490.0,0.06193829]
[1750698855587,0.34,101500.0,101490.0,0.06393829]
[1750698855997,0.34,101500.0,101490.0,0.03293829]
[1750698857110,0.34,101500.0,101490.0,0.06453829]
[1750698857355,0.34,101500.0,101490.0,0.07099212]
[1750698857821,0.34,101500.0,101490.0,0.00213829]
[1750698858132,0.34,101500.0,101490.0,0.06493829]
[1750698858519,0.34,101500.0,101490.0,0.06893829]
[1750698859199,0.34,101500.0,101490.0,0.16923768]
[1750698860453,0.10899489,101530.0,101490.0,0.38843768]
[1750698860670,2.112629,101520.0,101490.0,0.42728145]
[1750698860828,2.13085173,101520.0,101490.0,0.42728145]
[1750698861028,2.112629,101510.0,101490.0,0.42728145]
[1750698861228,0.01822273,101510.0,101490.0,0.42728145]
[1750698861436,0.01822273,101510.0,101500.0,0.0312]
[1750698861632,2.112629,101510.0,101500.0,0.10166815]
[1750698861792,2.13085173,101510.0,101500.0,0.10166815]
[1750698862006,0.51822273,101510.0,101500.0,0.10166815]
[1750698862221,0.01822273,101510.0,101500.0,0.10166815]
[1750698862418,2.112629,101520.0,101500.0,0.10166815]
[1750698862625,2.112629,101520.0,101500.0,0.10266815]
[1750698863270,0.01826426,101520.0,101510.0,0.0321]
[1750698863460,0.01826426,101520.0,101510.0,0.04245682]
[1750698863960,0.35826367,101520.0,101510.0,0.04245682]
[1750698864587,0.35926367,101520.0,101510.0,0.04245682]
[1750698864765,0.36743359,101520.0,101510.0,0.04245682]
[1750698865002,0.86743359,101520.0,101510.0,0.04245682]
[1750698865220,0.52743359,101520.0,101510.0,0.07655682]
[1750698865425,0.02743359,101520.0,101510.0,0.07655682]
[1750698865859,0.02743359,101520.0,101510.0,0.29547682]
[1750698866287,2.58036198,101520.0,101510.0,0.003]
[1750698866503,0.34,101500.0,101490.0,0.00013829]
[1750698866709,2.47089267,101500.0,101490.0,0.00013829]
[1750698866924,2.48008573,101500.0,101490.0,0.00013829]
[1750698867763,2.48008573,101500.0,101490.0,0.00313829]
[1750698867980,2.48021487,101500.0,101490.0,0.00313829]
[1750698868198,2.60409094,101500.0,101490.0,0.00313829]
[1750698869011,2.60409094,101500.0,101490.0,0.00013829]
[1750698869247,2.60409094,101500.0,101490.0,0.00113829]
[1750698869458,2.63336536,101500.0,101490.0,0.00113829]
[1750698870346,2.53306597,101500.0,101490.0,0.00113829]
[1750698870571,2.53306597,101500.0,101490.0,0.00013829]
[1750698870572,1.97421055,101500.0,101490.0,0.00013829]
[1750698871028,0.05116255,101500.0,101490.0,0.00013829]
[1750698871242,0.05116255,101500.0,101490.0,0.06383829]
[1750698871243,0.02758587,101500.0,101490.0,0.06383829]
[1750698871658,0.02758587,101500.0,101490.0,0.07022212]
[1750698871869,0.02758587,101500.0,101490.0,0.00652212]
[1750698872081,0.02758587,101500.0,101490.0,0.00013829]
[1750698872514,0.02765385,101500.0,101490.0,0.03213829]
[1750698872849,0.02765385,101500.0,101490.0,0.00113829]
[1750698873064,1.97429966,101500.0,101490.0,0.00113829]
[1750698873619,2.07459905,101500.0,101490.0,0.00113829]
[1750698874049,2.41459905,101500.0,101490.0,0.00113829]
[1750698875173,2.41460162,101500.0,101490.0,0.00113829]
[1750698875379,2.41460162,101500.0,101490.0,0.00013829]
[1750698875580,2.41660162,101500.0,101490.0,0.00013829]
[1750698876499,2.41660357,101500.0,101490.0,0.00013829]
[1750698876702,2.39300576,101500.0,101490.0,0.00013829]
[1750698876917,2.41661225,101500.0,101490.0,0.00013829]
[1750698878013,2.41661289,101500.0,101490.0,0.00013829]
[1750698880562,2.44612101,101500.0,101490.0,0.00013829]
[1750698880959,2.44612367,101500.0,101490.0,0.00013829]
[1750698881396,0.34,101480.0,101450.0,0.3021]
[1750698881604,0.34,101480.0,101450.0,0.0002]
[1750698881605,1.923048,101470.0,101450.0,0.0002]
[1750698881816,1.97431616,101470.0,101450.0,0.0002]
[1750698882024,1.923048,101460.0,101450.0,0.0002]
[1750698882233,0.01844051,101460.0,101450.0,0.0002]
[1750698882458,1.94148851,101460.0,101450.0,0.0002]
[1750698882665,1.97429257,101460.0,101450.0,0.0002]
[1750698882888,2.07459196,101460.0,101450.0,0.0002]
[1750698883337,2.07472994,101460.0,101450.0,0.0002]
[1750698883819,2.07472244,101460.0,101450.0,0.0052]
[1750698884050,2.07472244,101460.0,101450.0,0.0002]
[1750698884280,1.97442305,101460.0,101450.0,0.0032]
[1750698884523,1.96520692,101460.0,101450.0,0.0032]
[1750698884737,2.07472071,101460.0,101450.0,0.0032]
[1750698884982,2.40550631,101460.0,101450.0,0.0032]
[1750698885399,2.43570631,101460.0,101450.0,0.0042]
[1750698886704,2.43567441,101460.0,101450.0,0.0042]
[1750698886919,2.40547441,101460.0,101450.0,0.0042]
[1750698888075,2.38707404,101460.0,101450.0,0.0042]
[1750698888304,2.42558537,101460.0,101450.0,0.0042]
[1750698889027,2.51152655,101460.0,101450.0,0.0042]
[1750698889504,2.48202858,101460.0,101450.0,0.0042]
[1750698889962,2.56398355,101460.0,101450.0,0.0042]
[1750698890200,2.4348857,101460.0,101450.0,0.0002]
[1750698890417,2.39100903,101460.0,101450.0,0.0002]
[1750698890638,2.36748537,101460.0,101450.0,0.0002]
[1750698890867,2.26718598,101460.0,101450.0,0.0002]
[1750698892475,0.00413798,101460.0,101450.0,0.0644]
[1750698892735,0.00413798,101460.0,101450.0,0.07126]
[1750698893838,0.00013798,101460.0,101450.0,0.07126]
[1750698894051,0.00013798,101460.0,101450.0,0.0674]
[1750698895327,0.00013798,101460.0,101450.0,0.0032]
[1750698896409,0.00013798,101460.0,101450.0,0.0344]
[1750698898280,0.00013798,101460.0,101450.0,0.0653]
[1750698900681,0.00013798,101460.0,101450.0,0.16559939]
[1750698900887,0.00013798,101460.0,101450.0,0.42111533]
[1750698901330,0.00013798,101460.0,101450.0,1.21065855]
[1750698901610,2.423048,101530.0,101500.0,0.04125221]
[1750698901870,2.02334739,101530.0,101500.0,0.86431028]
[1750698902098,0.02547175,101540.0,101510.0,0.0638]
[1750698902099,0.02976716,101520.0,101510.0,0.0638]
[1750698902331,0.02976716,101520.0,101510.0,0.20218133]
[1750698902332,0.00013816,101520.0,101510.0,0.20218133]
[1750698903709,0.00013816,101520.0,101510.0,0.95634828]
[1750698903934,0.00013816,101520.0,101510.0,0.96619913]
[1750698904198,0.00013816,101520.0,101510.0,0.95634828]
[1750698904419,0.00013816,101520.0,101510.0,0.98004969]
[1750698904642,0.0001,101540.0,101530.0,0.61069089]
[1750698904884,0.0001,101540.0,101530.0,0.38288848]
[1750698905563,0.0001,101540.0,101530.0,0.28258909]
[1750698905798,0.0001,101540.0,101530.0,0.92971028]
[1750698906020,0.0001,101540.0,101530.0,0.95410043]
[1750698906442,0.0001,101540.0,101530.0,0.94425113]
[1750698906658,0.0001,101540.0,101530.0,1.22078397]
[1750698906875,0.0001,101540.0,101530.0,1.22078407]
[1750698907089,0.0001,101540.0,101530.0,1.33393218]
[1750698907310,0.0041,101550.0,101540.0,0.90404227]
[1750698907525,0.0001,101560.0,101550.0,0.81838546]
[1750698907736,0.00023811,101560.0,101550.0,1.16446538]
[1750698907968,0.00023811,101560.0,101550.0,1.17900623]
[1750698908234,0.0001,101570.0,101560.0,0.90119766]
[1750698908463,0.0041,101590.0,101580.0,0.8169244]
[1750698908680,0.0041,101590.0,101580.0,1.15311172]
[1750698908897,0.0041,101590.0,101580.0,1.16765247]
[1750698909119,0.0041,101590.0,101580.0,1.18812028]
[1750698909371,0.0041,101590.0,101580.0,0.46038793]
[1750698909589,0.0041,101590.0,101580.0,0.67650793]
[1750698910319,0.0041,101590.0,101580.0,0.68635238]
[1750698910545,0.0041,101590.0,101580.0,0.67650793]
[1750698910765,0.0041,101590.0,101580.0,0.77243229]
[1750698910983,0.0041,101590.0,101580.0,0.78227655]
[1750698911195,0.0041,101590.0,101580.0,0.80196477]
[1750698911395,0.0041,101590.0,101580.0,0.81180854]
[1750698911605,0.0041,101590.0,101580.0,1.50446459]
[1750698912100,0.0041,101590.0,101580.0,0.27149878]
[1750698912310,0.00401078,101590.0,101580.0,0.50271878]
[1750698912744,0.00401078,101590.0,101580.0,0.10829939]
[1750698912961,0.00401078,101590.0,101580.0,0.008]
[1750698913169,0.00401078,101590.0,101580.0,0.21588]
[1750698913401,0.00401078,101590.0,101580.0,0.006]
[1750698913620,0.00401078,101590.0,101580.0,0.21584]
[1750698913831,0.00401078,101590.0,101580.0,0.2158]
[1750698914044,0.00401078,101590.0,101580.0,0.048256]
[1750698914671,0.00401078,101590.0,101580.0,0.264016]
[1750698914883,0.00401078,101590.0,101580.0,0.261016]
[1750698915095,1.92705878,101590.0,101580.0,0.262016]
[1750698915513,1.92705878,101590.0,101580.0,0.001]
[1750698917264,2.05696217,101590.0,101580.0,0.001]
[1750698917484,2.05796217,101590.0,101580.0,0.001]
[1750698917698,2.46146217,101590.0,101580.0,0.001]
[1750698917913,2.47051398,101590.0,101580.0,0.001]
[1750698919641,2.47051684,101590.0,101580.0,0.001]
[1750698920282,2.43731684,101590.0,101580.0,0.001]
[1750698920905,2.42826217,101590.0,101580.0,0.001]
[1750698921350,2.46146217,101590.0,101580.0,0.001]
[1750698921983,2.4705275,101590.0,101580.0,0.001]
[1750698922414,2.4373275,101590.0,101580.0,0.001]
[1750698922625,2.4070275,101590.0,101580.0,0.001]
[1750698922837,2.30672811,101590.0,101580.0,0.001]
[1750698924627,2.4070275,101590.0,101580.0,0.001]
[1750698925298,2.40703805,101590.0,101580.0,0.001]
[1750698927691,2.30673866,101590.0,101580.0,0.001]
[1750698928755,2.43703805,101590.0,101580.0,0.001]
[1750698928965,2.49307726,101590.0,101580.0,0.001]
[1750698929184,2.55484763,101590.0,101580.0,0.001]
[1750698929637,2.60954744,101590.0,101580.0,0.001]
[1750698930062,0.34,101570.0,101530.0,0.67275689]
[1750698930277,0.34,101570.0,101550.0,0.07937689]
[1750698930278,1.923048,101560.0,101550.0,0.07937689]
[1750698930492,1.93222071,101560.0,101550.0,0.07937689]
[1750698930964,0.00917258,101560.0,101550.0,0.07937689]
[1750698931184,0.00917258,101560.0,101550.0,0.25242364]
[1750698931433,0.00917258,101560.0,101550.0,0.50809573]
[1750698931680,0.00917106,101560.0,101550.0,0.29265419]
[1750698933217,0.00917106,101560.0,101550.0,0.29865419]
[1750698933656,0.00917106,101560.0,101550.0,0.2192773]
[1750698933874,0.00917106,101560.0,101550.0,0.4339573]
[1750698936528,0.00919125,101560.0,101550.0,0.4339573]
[1750698936948,1.923048,101580.0,101550.0,0.2192773]
[1750698937150,1.94659796,101580.0,101550.0,0.45883939]
[1750698937387,1.923048,101570.0,101550.0,0.42673939]
[1750698937597,0.0091913,101570.0,101550.0,0.10349939]
[1750698937806,0.0091913,101570.0,101550.0,0.2204]
[1750698938017,1.923048,101560.0,101550.0,0.006]
[1750698938245,1.97418453,101560.0,101550.0,0.006]
[1750698938477,1.97418453,101560.0,101540.0,0.21432]
[1750698938713,1.923048,101550.0,101530.0,0.23697811]
[1750698938949,1.97418453,101550.0,101530.0,0.45125811]
[1750698939173,1.923048,101540.0,101530.0,0.45125811]
[1750698939463,1.9322393,101540.0,101530.0,0.21461811]
[1750698939716,0.10029939,101560.0,101530.0,0.27911811]
[1750698940008,1.97420377,101560.0,101530.0,0.37585931]
[1750698940255,0.05115577,101560.0,101540.0,0.0645]
[1750698940518,0.05115577,101560.0,101550.0,0.21424]
[1750698940519,0.00919927,101560.0,101550.0,0.21424]
[1750698941003,1.93224727,101560.0,101550.0,0.21424]
[1750698942430,0.03376166,101560.0,101550.0,0.21412]
[1750698942683,0.00919929,101560.0,101550.0,0.246392]
[1750698942918,0.34,101570.0,101550.0,0.247392]
[1750698943142,0.38201292,101570.0,101550.0,0.247392]
[1750698943364,0.38201292,101570.0,101550.0,0.280192]
[1750698943596,0.38201292,101570.0,101550.0,0.41159139]
[1750698943827,0.38201292,101570.0,101550.0,0.033272]
[1750698943828,1.686251,101560.0,101550.0,0.033272]
[1750698944058,1.70467866,101560.0,101550.0,0.001]
[1750698944307,1.70467866,101560.0,101550.0,0.215]
[1750698944308,0.01842766,101560.0,101550.0,0.215]
[1750698944777,0.34,101570.0,101550.0,0.214]
[1750698945032,1.686251,101560.0,101550.0,0.214]
[1750698945246,0.01843209,101560.0,101550.0,0.214]
[1750698945458,0.01843209,101560.0,101550.0,0.2354]
[1750698945681,0.84,101570.0,101550.0,0.36799939]
[1750698945896,0.38202779,101570.0,101550.0,0.39989939]
[1750698946370,0.38202779,101570.0,101550.0,0.37844675]
[1750698946594,0.35843177,101570.0,101560.0,0.0313]
[1750698946844,0.35843177,101570.0,101560.0,0.07128994]
[1750698947233,0.3820321,101570.0,101560.0,0.07128994]
[1750698947463,0.3820321,101570.0,101560.0,0.03998994]
[1750698947896,0.0420321,101570.0,101560.0,0.03998994]
[1750698948084,0.01843177,101570.0,101560.0,0.03998994]
[1750698948757,0.01943177,101570.0,101560.0,0.07128994]
[1750698948966,0.34,101580.0,101560.0,0.10318994]
[1750698949187,0.38202867,101580.0,101570.0,0.21272]
[1750698949406,1.686251,101570.0,101560.0,0.21372]
[1750698949613,1.7046806,101570.0,101560.0,0.237232]
[1750698950296,2.0446806,101570.0,101560.0,0.237232]
[1750698950753,2.026251,101570.0,101560.0,0.237232]
[1750698950962,2.0446821,101570.0,101560.0,0.237232]
[1750698951794,2.0446821,101570.0,101560.0,0.239232]
[1750698952308,2.068284,101570.0,101560.0,0.239232]
[1750698952528,2.19958339,101570.0,101560.0,0.21552]
[1750698952743,2.19958339,101570.0,101560.0,0.002]
[1750698952957,2.23108339,101570.0,101560.0,0.002]
[1750698958146,0.34,101530.0,101510.0,0.0317]
[1750698958367,0.029621,101540.0,101510.0,0.28026]
[1750698958577,1.686251,101530.0,101510.0,0.27626]
[1750698958990,0.12992039,101540.0,101520.0,0.0315]
[1750698958991,0.34,101540.0,101520.0,0.0315]
[1750698959198,0.34,101540.0,101520.0,0.09761594]
[1750698959199,2.186251,101540.0,101520.0,0.09761594]
[1750698959409,1.686251,101540.0,101520.0,0.09761594]
[1750698960062,1.686251,101540.0,101520.0,0.19791533]
[1750698960534,1.686251,101570.0,101530.0,0.37619939]
[1750698960782,2.186251,101550.0,101530.0,0.37619939]
[1750698960997,1.686251,101550.0,101530.0,0.43278061]
[1750698961216,1.686251,101550.0,101530.0,0.40128061]
[1750698961432,1.686251,101550.0,101540.0,0.0315]
[1750698961943,1.686251,101550.0,101530.0,0.15688061]
[1750698962168,1.686251,101540.0,101520.0,0.21288]
[1750698962396,1.686251,101520.0,101510.0,0.21308]
[1750698962623,1.686251,101520.0,101510.0,0.24194]
[1750698963937,1.686251,101520.0,101510.0,0.24594]
[1750698964154,1.686251,101520.0,101510.0,0.24194]
[1750698964615,1.686251,101520.0,101510.0,0.21496]
[1750698965251,1.686251,101520.0,101510.0,0.0002]
[1750698965252,2.04858306,101520.0,101510.0,0.0002]
[1750698965469,2.14888245,101520.0,101510.0,0.0002]
[1750698965731,2.04858306,101520.0,101510.0,0.0002]
[1750698966182,2.18208245,101520.0,101510.0,0.0002]
[1750698966604,2.18208245,101520.0,101510.0,0.0012]
[1750698966826,2.04858306,101520.0,101510.0,0.0002]
[1750698967260,0.36333206,101520.0,101510.0,0.0002]
[1750698967476,2.04958306,101520.0,101510.0,0.0002]
[1750698967897,2.14888245,101520.0,101510.0,0.0002]
[1750698968116,2.18178245,101520.0,101510.0,0.0002]
[1750698968353,2.18178245,101520.0,101510.0,0.0012]
[1750698969583,2.21418245,101520.0,101510.0,0.0012]
[1750698970485,2.21418245,101520.0,101510.0,0.0002]